bitfinex/quotes_SOLUSD_20250915
["timestamp","ask_amount","ask_price","bid_price","bid_amount"]
[1757919578356,79.88613897,240.88,240.87,79.46]
[1757919579873,46.82613897,240.88,240.87,79.46]
[1757919580039,79.88613897,240.88,240.87,79.46]
[1757919581353,46.82613897,240.88,240.87,79.46]
[1757919581544,79.88613897,240.88,240.87,79.46]
[1757919582847,46.82613897,240.88,240.87,79.46]
[1757919583165,79.88613897,240.88,240.87,79.46]
[1757919583367,46.82613897,240.88,240.87,79.46]
[1757919583568,79.88613897,240.88,240.87,79.46]
[1757919583882,41.99469427,240.88,240.87,0.75]
[1757919584168,72.33748829,240.88,240.87,0.06]
[1757919584654,76.48893299,240.88,240.87,0.06]
[1757919585166,72.33748829,240.88,240.87,0.06]
[1757919585478,0.03,240.93,240.87,80.15]
[1757919585645,33.06,240.92,240.88,0.69]
[1757919585844,0.03,240.93,240.88,0.69]
[1757919586044,26.0,240.89,240.88,4.84133942]
[1757919587266,33.06,240.9,240.89,13.59559401]
[1757919587480,33.06,240.9,240.89,14.28559401]
[1757919588259,33.06,240.9,240.89,18.43686637]
[1757919590280,33.06,240.9,240.89,14.28559401]
[1757919590569,33.78,240.9,240.87,0.06]
[1757919590745,37.93112078,240.9,240.87,0.06]
[1757919590947,26.0,240.88,240.87,0.06]
[1757919591146,59.06,240.88,240.87,0.06]
[1757919591345,59.78,240.88,240.87,0.06]
[1757919591747,26.0,240.88,240.87,0.06]
[1757919592101,66.62270513,240.88,240.87,0.06]
[1757919593269,61.75126043,240.88,240.87,0.06]
[1757919593458,66.62270513,240.88,240.87,0.06]
[1757919594762,33.58270513,240.88,240.87,0.06]
[1757919595073,61.75126043,240.88,240.87,0.75]
[1757919595255,65.90270513,240.88,240.87,0.06]
[1757919597968,66.62270513,240.88,240.87,0.06]
[1757919599301,72.53368079,240.88,240.87,0.06]
[1757919599488,79.90019342,240.88,240.87,0.06]
[1757919601164,83.28965569,240.88,240.87,0.06]
[1757919601383,73.98921776,240.88,240.86,0.06]
[1757919601569,19.12407493,240.87,240.86,0.06]
[1757919601990,19.84407493,240.87,240.86,0.06]
[1757919602180,48.77095573,240.87,240.86,0.06]
[1757919602685,42.85998007,240.87,240.86,0.78]
[1757919602886,42.85998007,240.87,240.86,0.06]
[1757919604612,43.57998007,240.87,240.86,0.06]
[1757919605500,42.85998007,240.87,240.86,0.06]
[1757919605702,42.85998007,240.87,240.86,0.78]
[1757919605877,42.85998007,240.87,240.86,0.06]
[1757919607879,47.73159712,240.87,240.86,0.06]
[1757919608413,47.01159712,240.87,240.86,0.06]
[1757919609590,42.85998007,240.87,240.86,0.06]
[1757919609782,47.01159712,240.87,240.86,0.06]
[1757919611011,47.02074319,240.87,240.86,0.06]
[1757919611478,47.05074319,240.87,240.86,0.06]
[1757919612678,47.74074319,240.87,240.86,0.06]
[1757919612878,54.24502872,240.87,240.86,0.06]
[1757919613110,54.24502872,240.87,240.85,0.06]
[1757919613407,13.73691596,240.86,240.84,0.06]
[1757919613703,43.09182022,240.85,240.84,0.06]
[1757919613906,43.78182022,240.85,240.84,0.06]
[1757919614106,50.28610575,240.85,240.84,0.06]
[1757919615179,54.43806755,240.85,240.84,0.06]
[1757919616106,20.70806755,240.85,240.84,0.06]
[1757919616306,10.05182022,240.85,240.84,0.75]
[1757919616534,43.09182022,240.85,240.84,0.75]
[1757919616995,35.7604065,240.85,240.84,0.75]
[1757919617196,61.7604065,240.85,240.84,0.75]
[1757919617582,35.7604065,240.85,240.84,0.75]
[1757919618215,35.76344306,240.85,240.84,0.75]
[1757919620117,39.91540486,240.85,240.84,0.75]
[1757919620287,39.91540486,240.85,240.84,0.06]
[1757919620713,35.76344306,240.85,240.84,0.06]
[1757919621587,39.91540486,240.85,240.84,0.06]
[1757919622410,35.76344306,240.85,240.84,0.75]
[1757919622718,39.91540486,240.85,240.84,0.06]
[1757919622897,41.78408482,240.85,240.84,0.06]
[1757919623104,47.97191749,240.85,240.84,0.06]
[1757919624512,50.68622132,240.85,240.84,0.06]
[1757919624696,47.26191749,240.85,240.84,0.06]
[1757919625519,10.08995569,240.85,240.84,0.75]
[1757919625714,2.72344306,240.85,240.84,0.75]
[1757919625915,35.74344306,240.85,240.84,0.75]
[1757919626597,35.74344306,240.85,240.84,93.74559401]
[1757919626803,33.02,240.86,240.85,17.74755581]
[1757919627110,33.02,240.86,240.85,18.43755581]
[1757919627611,33.05,240.87,240.85,18.43755581]
[1757919627822,0.03,240.87,240.86,14.28559401]
[1757919628198,0.03,240.87,240.86,93.68559401]
[1757919630605,0.03,240.87,240.86,0.69]
[1757919632926,0.03,240.87,240.86,14.28559401]
[1757919633628,0.03,240.87,240.86,13.59559401]
[1757919634333,0.03,240.87,240.86,14.28559401]
[1757919635398,0.03,240.9,240.87,28.12625369]
[1757919635602,0.03,240.9,240.87,241.01625369]
[1757919635822,0.03,240.9,240.88,0.69]
[1757919636615,0.03,240.9,240.87,226.73065968]
[1757919636808,0.03,240.9,240.88,13.59559401]
[1757919637226,0.03,240.9,240.88,79.4]
[1757919637831,33.72,240.9,240.88,79.4]
[1757919638919,33.03,240.9,240.88,79.4]
[1757919639436,0.03,240.9,240.89,0.66]
[1757919639647,33.03,240.9,240.89,0.66]
[1757919639827,33.03,240.9,240.89,14.25559401]
[1757919640337,33.03,240.9,240.89,13.59559401]
[1757919640511,33.03,240.9,240.89,92.99559401]
[1757919641329,0.03,240.9,240.89,97.80686637]
[1757919642313,0.03,240.9,240.89,79.4]
[1757919642532,0.71,240.9,240.89,79.4]
[1757919642727,59.71,240.9,240.89,79.4]
[1757919642919,59.03,240.9,240.89,79.4]
[1757919643308,33.03,240.9,240.89,80.06]
[1757919644134,0.03,240.9,240.89,97.80686637]
[1757919645043,0.71,240.9,240.89,79.4]
[1757919645212,0.03,240.9,240.89,79.4]
[1757919645817,0.03,240.9,240.89,92.99559401]
[1757919646029,0.03,240.9,240.89,93.65559401]
[1757919646233,0.03,240.9,240.89,97.80686637]
[1757919647540,0.03,240.9,240.89,79.4]
[1757919648341,0.03,240.9,240.89,97.80686637]
[1757919649430,0.03,240.92,240.91,17.74652174]
[1757919650623,0.03,240.92,240.91,18.40652174]
[1757919651328,0.03,240.92,240.91,97.77652174]
[1757919652516,0.03,240.92,240.91,230.57652174]
[1757919654041,0.03,240.95,240.91,240.95384107]
[1757919654338,0.03,240.95,240.93,13.59559401]
[1757919654542,0.03,240.95,240.94,50.7260049]
[1757919654730,32.98,241.05,240.99,13.59559401]
[1757919654914,32.98,241.05,240.99,92.87559401]
[1757919655120,32.98,241.05,240.99,93.53559401]
[1757919655318,26.0,241.05,241.0,14.25559401]
[1757919655559,0.68,241.08,241.0,93.53559401]
[1757919655851,0.68,241.08,241.0,126.51559401]
[1757919656036,26.0,241.06,241.0,126.51559401]
[1757919656550,26.0,241.06,241.0,130.6649716]
[1757919656954,0.68,241.08,241.0,130.6649716]
[1757919657246,32.98,241.09,241.0,263.4649716]
[1757919657439,0.68,241.13,241.0,263.4649716]
[1757919657626,3.38934889,241.13,241.0,263.4649716]
[1757919657939,26.0,241.11,241.0,263.4649716]
[1757919658143,0.68,241.12,241.0,263.4649716]
[1757919658333,26.0,241.11,241.0,263.4649716]
[1757919658745,0.68,241.09,241.0,263.4449716]
[1757919659048,0.68,241.08,241.0,230.4849716]
[1757919659352,26.68,241.11,241.0,263.4449716]
[1757919660223,0.68,241.1,241.0,263.4449716]
[1757919660423,26.0,241.11,241.0,263.4449716]
[1757919661348,26.0,241.11,241.09,13.59559401]
[1757919661536,0.68,241.1,241.09,92.84559401]
[1757919661737,0.68,241.1,241.09,79.25]
[1757919662348,26.0,241.11,241.09,79.25]
[1757919662743,0.68,241.11,241.1,13.59559401]
[1757919662940,58.96,241.14,241.1,13.59559401]
[1757919663144,59.64,241.14,241.1,92.84559401]
[1757919663346,0.68,241.13,241.1,92.84559401]
[1757919663545,0.68,241.12,241.1,79.25]
[1757919663850,63.10697296,241.14,241.1,79.25]
[1757919663851,0.68,241.11,241.1,79.25]
[1757919666857,0.71,241.13,241.1,79.25]
[1757919667055,0.71,241.13,241.11,13.59559401]
[1757919667056,26.0,241.12,241.11,13.59559401]
[1757919667354,26.0,241.12,241.11,92.84559401]
[1757919667548,26.68,241.12,241.11,92.84559401]
[1757919668638,26.0,241.12,241.11,92.84559401]
[1757919668942,0.03,241.13,241.11,97.69307856]
[1757919669141,0.03,241.13,241.12,14.29559401]
[1757919669558,0.03,241.15,241.14,13.59559401]
[1757919669727,0.03,241.15,241.14,92.81559401]
[1757919671242,0.03,241.15,241.14,96.96256257]
[1757919671832,0.03,241.15,241.14,97.66256257]
[1757919673658,0.03,241.15,241.14,263.38256257]
[1757919674938,0.03,241.15,241.14,92.81559401]
[1757919676062,0.03,241.15,241.14,97.66256257]
[1757919677046,0.03,241.15,241.14,92.81559401]
[1757919677356,0.03,241.15,241.14,97.66256257]
[1757919679264,0.03,241.15,241.14,230.46256257]
[1757919680245,34.06651263,241.25,241.17,13.59559401]
[1757919680439,34.06651263,241.25,241.17,259.20559401]
[1757919680645,0.7,241.24,241.18,32.92]
[1757919680868,0.7,241.24,241.18,211.99]
[1757919681050,0.7,241.24,241.18,244.91]
[1757919681383,33.36651263,241.25,241.2,13.59559401]
[1757919681546,26.7,241.25,241.2,13.59559401]
[1757919681883,0.1,241.26,241.22,13.59559401]
[1757919682062,0.1,241.26,241.22,92.78559401]
[1757919682569,0.1,241.26,241.24,13.59559401]
[1757919682772,0.1,241.26,241.24,92.78559401]
[1757919683356,0.1,241.26,241.24,96.93073455]
[1757919683558,26.7,241.25,241.24,79.19]
[1757919683754,26.7,241.25,241.16,0.7]
[1757919683755,26.7,241.25,241.17,14.29559401]
[1757919683956,26.7,241.25,241.17,126.38559401]
[1757919684855,0.7,241.24,241.17,92.78559401]
[1757919685046,0.7,241.23,241.18,13.59559401]
[1757919685249,0.7,241.22,241.18,13.59559401]
[1757919685450,26.0,241.25,241.19,4.14610887]
[1757919685670,0.7,241.24,241.19,4.14610887]
[1757919685874,0.7,241.23,241.19,4.14610887]
[1757919686258,30.14509278,241.25,241.18,13.59559401]
[1757919686462,0.7,241.22,241.18,17.74187017]
[1757919687963,0.7,241.22,241.18,96.93187017]
[1757919688579,0.1,241.26,241.2,13.59559401]
[1757919688775,0.1,241.26,241.2,92.78559401]
[1757919688982,0.1,241.26,241.22,13.59559401]
[1757919689276,0.1,241.26,241.22,92.78559401]
[1757919689476,0.1,241.26,241.24,13.59559401]
[1757919689857,0.1,241.26,241.24,92.78559401]
[1757919690058,0.1,241.26,241.24,96.93075143]
[1757919691189,0.1,241.26,241.24,79.19]
[1757919692565,0.7,241.25,241.2,13.59559401]
[1757919692876,0.7,241.24,241.2,13.59559401]
[1757919693268,0.67,241.23,241.19,79.19]
[1757919693594,26.0,241.25,241.12,0.72]
[1757919693595,26.0,241.21,241.12,0.72]
[1757919693883,26.0,241.17,241.12,0.72]
[1757919694261,26.0,241.17,241.13,13.59559401]
[1757919694457,26.67,241.17,241.13,13.59559401]
[1757919694862,26.67,241.17,241.12,13.59559401]
[1757919695094,26.0,241.17,241.13,0.72]
[1757919695270,26.0,241.17,241.12,13.59559401]
[1757919695466,26.0,241.17,241.14,0.72]
[1757919695784,26.0,241.17,241.12,13.59559401]
[1757919695994,26.0,241.17,241.12,14.31559401]
[1757919696170,37.69595797,241.2,241.12,14.31559401]
[1757919696377,26.0,241.17,241.12,14.31559401]
[1757919696575,63.69595797,241.2,241.14,4.14696856]
[1757919698273,63.69598733,241.2,241.14,4.14696856]
[1757919698582,2.71794054,241.19,241.14,4.14696856]
[1757919698791,2.71794054,241.19,241.14,4.84696856]
[1757919698995,58.88,241.2,241.15,13.59559401]
[1757919699371,2.71973298,241.19,241.15,13.59559401]
[1757919699703,26.0,241.2,241.17,13.59559401]
[1757919699894,7.36651263,241.21,241.18,0.7]
[1757919700077,32.88,241.23,241.19,13.59559401]
[1757919700388,58.88,241.23,241.19,13.59559401]
[1757919700688,59.55,241.23,241.19,13.59559401]
[1757919701293,0.67,241.22,241.17,79.4]
[1757919701482,3.39213178,241.21,241.18,13.59559401]
[1757919701785,3.39213178,241.2,241.17,79.4]
[1757919701991,0.67,241.2,241.17,79.4]
[1757919702178,2.72213178,241.22,241.17,79.4]
[1757919702179,0.67,241.22,241.17,79.4]
[1757919702379,3.39201362,241.21,241.17,79.4]
[1757919702686,30.14544157,241.23,241.18,13.59559401]
[1757919702891,7.53912926,241.22,241.18,13.59559401]
[1757919703073,0.67,241.22,241.18,13.59559401]
[1757919703880,0.67,241.21,241.18,13.59559401]
[1757919704077,0.67,241.21,241.17,79.4]
[1757919704474,6.87064946,241.22,241.17,79.4]
[1757919704681,2.72495917,241.22,241.18,13.59559401]
[1757919705606,26.0,241.23,241.19,0.7]
[1757919705771,26.0,241.23,241.2,0.7]
[1757919705975,26.0,241.23,241.21,13.59559401]
[1757919706198,7.46651263,241.26,241.23,13.59559401]
[1757919706395,7.46651263,241.26,241.24,0.7]
[1757919706711,7.46651263,241.26,241.23,92.99559401]
[1757919706886,26.0,241.23,241.18,79.4]
[1757919707089,0.67,241.22,241.18,79.4]
[1757919707486,4.14560057,241.22,241.18,79.4]
[1757919707708,0.67,241.21,241.18,79.4]
[1757919707887,0.67,241.2,241.18,79.4]
[1757919708095,26.0,241.19,241.14,13.59559401]
[1757919708294,26.0,241.19,241.14,14.29559401]
[1757919709205,26.0,241.17,241.13,13.59559401]
[1757919709592,26.67,241.17,241.13,13.59559401]
[1757919709906,26.0,241.17,241.14,0.7]
[1757919711300,26.0,241.17,241.13,17.74268553]
[1757919711514,26.0,241.17,241.13,18.44268553]
[1757919711696,26.0,241.17,241.13,97.84268553]
[1757919713601,26.0,241.17,241.14,0.7]
[1757919713802,26.0,241.17,241.15,0.7]
[1757919714002,26.0,241.17,241.16,14.29559401]
[1757919714209,10.87081646,241.26,241.17,13.59559401]
[1757919714394,2.73214339,241.25,241.19,13.59559401]
[1757919714735,26.0,241.23,241.19,13.59559401]
[1757919715008,2.73214339,241.22,241.19,0.7]
[1757919715218,26.0,241.23,241.18,13.59559401]
[1757919715525,3.40313333,241.22,241.18,13.59559401]
[1757919715694,30.1454265,241.23,241.18,13.59559401]
[1757919715898,3.40362253,241.22,241.18,79.4]
[1757919716200,2.73362253,241.21,241.18,79.4]
[1757919716399,2.73362253,241.2,241.18,79.4]
[1757919716616,0.67,241.21,241.18,79.4]
[1757919716797,2.73298829,241.2,241.18,79.4]
[1757919716997,26.0,241.17,241.14,79.4]
[1757919717212,0.72,241.16,241.14,79.4]
[1757919717394,0.72,241.16,241.11,13.59559401]
[1757919717593,0.72,241.16,241.11,14.27559401]
[1757919718817,0.72,241.16,241.11,18.42302489]
[1757919719622,30.14646953,241.17,241.11,18.42302489]
[1757919719791,6.87935709,241.16,241.11,14.27559401]
[1757919720118,2.73259801,241.15,241.11,18.42306777]
[1757919720319,29.40430383,241.21,241.12,0.68]
[1757919720632,26.0,241.17,241.13,13.59559401]
[1757919720803,26.0,241.17,241.12,0.68]
[1757919720804,26.0,241.17,241.15,13.59559401]
[1757919721003,32.91,241.22,241.16,0.68]
[1757919721311,26.0,241.19,241.16,0.68]
[1757919721624,2.73285118,241.18,241.16,0.68]
[1757919721829,26.0,241.19,241.17,4.1464527]
[1757919721999,26.0,241.19,241.17,79.4]
[1757919722306,0.72,241.18,241.17,79.4]
[1757919722506,3.45331578,241.18,241.17,79.4]
[1757919722693,2.73331578,241.18,241.17,79.4]
[1757919725002,3.45331578,241.18,241.17,79.4]
[1757919725198,7.59959656,241.18,241.17,79.4]
[1757919725700,2.73331578,241.18,241.17,79.4]
[1757919726022,3.45331578,241.18,241.17,79.4]
[1757919726235,7.59959656,241.18,241.17,79.4]
[1757919726397,2.73331578,241.18,241.17,79.4]
[1757919727210,2.73331578,241.18,241.17,80.08]
[1757919727626,2.73331578,241.18,241.17,84.2264527]
[1757919727938,29.45331578,241.18,241.13,79.4]
[1757919728112,3.45535095,241.17,241.13,79.4]
[1757919728302,2.73535095,241.16,241.13,79.4]
[1757919728627,2.73535095,241.15,241.13,79.4]
[1757919728931,0.72,241.17,241.13,79.4]
[1757919729102,2.73578869,241.16,241.13,80.1]
[1757919729301,2.73578869,241.15,241.14,0.7]
[1757919729501,2.73578869,241.15,241.14,13.59559401]
[1757919729897,26.0,241.19,241.14,13.59559401]
[1757919729898,58.86,241.19,241.14,13.59559401]
[1757919730103,2.73686825,241.18,241.17,13.59559401]
[1757919730329,26.0,241.2,241.17,14.29559401]
[1757919730629,26.0,241.2,241.18,0.7]
[1757919731024,0.03,241.22,241.19,0.7]
[1757919731340,0.03,241.22,241.2,13.59559401]
[1757919731552,0.03,241.22,241.2,92.99559401]
[1757919731708,0.03,241.22,241.2,79.4]
[1757919732242,0.03,241.22,241.2,83.54592175]
[1757919732425,0.03,241.22,241.2,84.24592175]
[1757919732829,0.03,241.22,241.21,0.7]
[1757919733012,2.76695257,241.22,241.21,14.29559401]
[1757919733220,0.03,241.22,241.21,14.29559401]
[1757919734231,0.03,241.22,241.21,18.44135911]
[1757919734431,0.1,241.26,241.24,13.59559401]
[1757919734632,0.1,241.26,241.24,92.96559401]
[1757919734837,0.1,241.26,241.24,93.66559401]
[1757919736215,0.1,241.26,241.24,97.81078779]
[1757919736628,0.1,241.26,241.24,92.96559401]
[1757919737136,0.1,241.26,241.24,97.11083437]
[1757919737318,0.1,241.26,241.25,14.29559401]
[1757919737633,0.1,241.26,241.25,47.15559401]
[1757919738139,0.1,241.26,241.25,130.67067173]
[1757919739328,0.1,241.26,241.25,93.66559401]
[1757919739532,0.1,241.26,241.25,92.96559401]
[1757919740039,0.1,241.26,241.25,93.66559401]
[1757919740210,0.1,241.26,241.25,92.96559401]
[1757919743750,0.82,241.26,241.25,79.37]
[1757919744049,0.1,241.26,241.25,79.37]
[1757919744450,0.82,241.26,241.25,79.37]
[1757919745428,0.1,241.26,241.25,79.37]
[1757919747133,0.1,241.26,241.25,92.96559401]
[1757919747953,0.1,241.26,241.25,93.66559401]
[1757919748736,2.73003844,241.31,241.29,13.59559401]
[1757919748953,38.33350513,241.36,241.29,13.59559401]
[1757919748954,26.0,241.32,241.29,92.86559401]
[1757919749158,26.72,241.32,241.29,92.86559401]
[1757919749526,26.72,241.32,241.29,79.27]
[1757919749846,0.72,241.31,241.29,79.27]
[1757919750036,0.72,241.3,241.29,79.27]
[1757919750443,26.0,241.32,241.29,79.27]
[1757919750929,30.8639008,241.32,241.29,79.27]
[1757919751133,0.72,241.31,241.29,79.27]
[1757919751538,30.1439008,241.32,241.29,79.27]
[1757919751754,30.8639008,241.32,241.29,79.27]
[1757919752057,3.44529631,241.31,241.29,79.27]
[1757919752275,26.72,241.3,241.29,79.27]
[1757919752559,3.44516369,241.3,241.29,79.27]
[1757919752765,7.5893825,241.3,241.29,79.27]
[1757919753848,26.0,241.27,241.23,79.27]
[1757919754156,3.44426586,241.26,241.23,79.27]
[1757919754338,3.44426586,241.26,241.22,0.06]
[1757919754752,2.72426586,241.26,241.22,0.76]
[1757919755053,28.72426586,241.26,241.23,14.29559401]
[1757919755371,26.0,241.26,241.25,13.59559401]
[1757919755938,26.0,241.26,241.24,0.7]
[1757919756354,26.0,241.26,241.25,13.59559401]
[1757919756657,26.0,241.26,241.25,14.29559401]
[1757919757233,26.0,241.26,241.25,13.59559401]
[1757919757459,26.0,241.26,241.24,13.59559401]
[1757919757970,0.72,241.25,241.22,0.06]
[1757919758141,36.28592438,241.25,241.22,0.06]
[1757919758455,33.56,241.25,241.22,0.06]
[1757919759160,32.84,241.25,241.22,0.06]
[1757919759362,32.84,241.25,241.24,0.06]
[1757919759665,28.72534977,241.25,241.24,0.76]
[1757919759849,26.0,241.25,241.24,0.76]
[1757919760740,26.0,241.25,241.24,0.06]
[1757919761156,26.69,241.25,241.24,0.06]
[1757919761359,26.0,241.25,241.24,0.06]
[1757919763842,47.74846836,241.25,241.24,0.06]
[1757919764167,53.24197349,241.25,241.24,0.06]
[1757919766245,15.58689577,241.25,241.24,0.06]
[1757919766461,41.91339064,241.25,241.24,0.06]
[1757919766646,13.92846836,241.25,241.24,0.06]
[1757919766846,46.74846836,241.25,241.24,0.06]
[1757919770248,13.92846836,241.25,241.24,0.06]
[1757919770463,46.74846836,241.25,241.24,0.06]
[1757919771054,13.23846836,241.25,241.24,0.06]
[1757919771368,34.54687801,241.25,241.24,0.76]
[1757919771542,34.54687801,241.25,241.24,0.06]
[1757919772055,1.72687801,241.25,241.24,0.06]
[1757919772553,1.72687801,241.25,241.24,0.76]
[1757919773146,32.82,241.29,241.24,0.76]
[1757919773351,26.0,241.26,241.24,4.90524954]
[1757919773545,26.0,241.26,241.25,0.7]
[1757919773962,26.0,241.26,241.25,93.56559401]
[1757919774166,32.82,241.29,241.25,93.56559401]
[1757919774473,32.82,241.29,241.26,4.84490591]
[1757919774474,26.0,241.27,241.26,4.84490591]
[1757919774777,26.0,241.27,241.26,4.14490591]
[1757919775142,26.0,241.27,241.26,4.84490591]
[1757919775344,0.03,241.3,241.27,13.59559401]
[1757919775571,0.03,241.3,241.28,0.7]
[1757919775757,0.03,241.3,241.28,79.27]
[1757919776366,26.0,241.29,241.28,79.97]
[1757919777562,0.03,241.3,241.28,79.97]
[1757919777776,0.03,241.3,241.29,14.28559401]
[1757919778853,0.03,241.3,241.29,18.42998457]
[1757919782862,0.69,241.3,241.29,79.27]
[1757919783062,0.03,241.3,241.29,79.27]
[1757919783270,2.75989695,241.3,241.29,79.27]
[1757919784486,0.03,241.3,241.29,93.55559401]
[1757919784796,0.03,241.3,241.29,97.69998457]
[1757919786977,0.03,241.3,241.29,130.49998457]
[1757919787787,0.03,241.3,241.29,92.86559401]
[1757919789179,0.03,241.3,241.29,97.72998457]
[1757919789549,0.03,241.3,241.29,92.86559401]
[1757919789882,0.03,241.3,241.29,97.72998457]
[1757919790052,0.03,241.3,241.29,92.86559401]
[1757919791087,0.03,241.3,241.29,79.27]
[1757919791291,0.73,241.3,241.29,79.27]
[1757919792870,26.0,241.27,241.25,79.27]
[1757919793568,0.7,241.26,241.25,79.27]
[1757919794663,26.0,241.27,241.25,79.27]
[1757919794892,0.7,241.26,241.25,79.27]
[1757919795063,33.5,241.26,241.25,79.27]
[1757919796082,43.59429057,241.26,241.24,0.06]
[1757919796293,2.72777794,241.25,241.24,0.06]
[1757919796663,14.93936829,241.25,241.24,0.06]
[1757919797187,20.05261482,241.25,241.24,0.06]
[1757919803276,52.85261482,241.25,241.24,0.06]
[1757919805002,20.05261482,241.25,241.24,0.06]
[1757919805375,52.85261482,241.25,241.24,0.06]
[1757919805564,52.15261482,241.25,241.24,0.06]
[1757919807396,15.2075371,241.25,241.24,0.06]
[1757919807583,48.0075371,241.25,241.24,0.06]
[1757919808086,48.0075371,241.25,241.24,0.78]
[1757919808291,52.15261482,241.25,241.24,0.06]
[1757919809797,52.85261482,241.25,241.24,0.06]
[1757919809995,19.35261482,241.25,241.24,0.06]
[1757919810298,48.0075371,241.25,241.24,0.06]
[1757919810484,52.15261482,241.25,241.24,0.06]
[1757919812197,52.85261482,241.25,241.24,0.06]
[1757919813403,52.88261482,241.25,241.24,0.06]
[1757919814379,52.18261482,241.25,241.24,0.06]
[1757919817503,15.2375371,241.25,241.24,80.05]
[1757919817703,45.28975916,241.25,241.24,80.05]
[1757919818005,1.31777794,241.25,241.24,80.05]
[1757919818199,0.03,241.28,241.25,13.59559401]
[1757919818497,0.03,241.28,241.24,79.33]
[1757919818705,58.78,241.27,241.24,79.33]
[1757919819604,58.78,241.27,241.24,83.47523795]
[1757919819808,58.78,241.27,241.24,79.33]
[1757919820112,63.60481274,241.27,241.24,79.33]
[1757919820294,0.68,241.26,241.24,79.33]
[1757919820495,32.78,241.25,241.24,79.33]
[1757919820700,36.92507772,241.25,241.24,79.33]
[1757919820894,37.60507772,241.25,241.24,79.33]
[1757919821091,37.60507772,241.25,241.24,0.06]
[1757919821402,50.46509548,241.25,241.24,0.06]
[1757919821606,26.0,241.23,241.22,0.06]
[1757919821810,44.60684812,241.23,241.22,0.06]
[1757919821987,46.71779504,241.23,241.22,0.06]
[1757919823084,50.86321642,241.23,241.22,0.06]
[1757919824513,50.86321642,241.23,241.21,0.06]
[1757919824690,16.26724445,241.22,241.21,0.06]
[1757919825014,20.72757994,241.22,241.21,0.06]
[1757919825182,21.40757994,241.22,241.21,0.06]
[1757919826006,21.40757994,241.22,241.19,0.06]
[1757919826007,26.0,241.2,241.19,0.06]
[1757919826211,26.0,241.2,241.11,0.06]
[1757919826212,66.86198609,241.2,241.11,0.06]
[1757919826383,26.0,241.16,241.11,0.06]
[1757919826590,26.0,241.12,241.11,0.06]
[1757919826790,66.14651263,241.12,241.11,0.06]
[1757919827008,70.29382517,241.12,241.11,0.06]
[1757919827816,75.84927797,241.12,241.11,0.06]
[1757919828309,71.69111074,241.12,241.11,0.06]
[1757919828683,76.5264283,241.12,241.11,0.06]
[1757919829102,77.24371387,241.12,241.11,0.06]
[1757919830194,79.96292991,241.12,241.11,0.06]
[1757919831711,47.18292991,241.12,241.11,0.06]
[1757919831927,79.96292991,241.12,241.11,0.06]
[1757919832409,81.62665041,241.12,241.11,0.06]
[1757919832617,79.96292991,241.12,241.11,0.06]
[1757919832916,47.18292991,241.12,241.11,0.06]
[1757919833116,79.96292991,241.12,241.11,0.06]
[1757919833491,36.08572867,241.12,241.11,0.06]
[1757919833792,40.14651263,241.12,241.11,0.06]
[1757919834011,32.78,241.12,241.11,0.06]